[Event "Dutch Open 2022"]
[Site "Dieren"]
[Date "2022.07.30"]
[Round "5.14"]
[White "De Boer, Bas"]
[Black "Albers, Sasa"]
[Result "1-0"]
[ECO "E34"]
[WhiteElo "2136"]
[BlackElo "2203"]
[Annotator "TA"]
[PlyCount "145"]
[EventDate "2022.07.14"]
[EventType "swiss"]
[EventCountry "NED"]
[SourceTitle "playchess.com"]
[Source "ChessBase"]
[SourceQuality "1"]
[TimeControl "40/5400+30:1800+30"]

{[%evp 10,145,25,21,28,11,25,0,0,-7,20,15,23,15,16,0,-3,-2,0,-16,-1,-47,12,0,0,17,106,95,145,96,119,93,145,127,120,89,127,0,90,85,60,-156,27,17,23,0,0,-126,-138,-145,254,237,250,237,260,227,231,98,81,0,0,0,146,148,133,140,107,149,179,139,325,0,0,0,0,0,184,184,189,0,62,54,277,277,281,271,448,442,433,431,362,341,461,436,4626,4626,4570,585,4618,4610,1412,1250,4602,566,493,472,470,468,4618,336,347,338,481,479,452,415,494,340,323,310,312,262,400,400,368,425,414,410,409,393,4590,557,5583,4618,29980,29981,29978,5165]} 1. d4 {[%emt 0:00:02]} Nf6 {[%emt 0:00:05]} 2. c4 {[%emt 0:00:04]} e6 {[%emt 0:00:04]} 3. Nc3 {[%emt 0:00:35]} Bb4 {[%emt 0:00:06]} 4. Qc2 {[%emt 0:00:09]} d5 {[%emt 0:00:26]} 5. cxd5 {[%emt 0:02:02]} Qxd5 {[%emt 0:01:02]} 6. e3 {[%emt 0:01:35]} O-O {[%emt 0:03:39] E34: Nimzo-Indian: Classical: 4...d5.} 7. Nf3 {[%emt 0:04:32][%cal Bg1f3,Bf3d2,Bd2c4,Bc4d6][%mdl 32]} b6 {[%emt 0:10:01] [#]} 8. Nd2 $146 {[%emt 0:12:41]} ({Predecessor:} 8. Bd3 Ba6 9. Bxa6 Nxa6 10. O-O Qb7 11. a3 Bxc3 12. bxc3 c5 13. a4 Rfc8 14. Qb3 Nb8 {½-½ (51) Akobian,V (2633)-Short,N (2675) Caleta 2017}) 8... Bxc3 {[%emt 0:10:02] The position is equal.} 9. bxc3 {[%emt 0:00:15]} Bb7 {[%emt 0:15:13]} 10. f3 {[%emt 0:05:09]} c5 {[%emt 0:01:06]} 11. e4 {[%emt 0:16:52]} Qc6 {[%emt 0:00:38]} 12. dxc5 {[%emt 0:05:51]} Qxc5 {[%emt 0:02:32]} 13. Nc4 {[%emt 0:00:55]} Rd8 {[%emt 0:24:38]} 14. Ba3 {[%emt 0:14:36]} Qg5 {[%emt 0:01:44]} 15. Qf2 {[%emt 0:04:42]} (15. Rd1 $11 Nc6 16. Bd3) 15... Na6 {[%emt 0:05:12]} ({Better is} 15... Nc6 $15) 16. e5 {[%emt 0:07:31]} Nd5 {[%emt 0:02:13]} 17. h4 {[%emt 0:00:36][%cal Bh2h4,Bh4h5][%mdl 32]} Qg6 {[%emt 0:01:16]} (17... Qh6 $11 {keeps the balance.}) 18. Nd6 $16 {[%emt 0:02:34]} Qh5 {[%emt 0:03:36]} 19. Qd4 {[%emt 0:00:53]} (19. Qg3 $142 Ne3 20. Bd3 (20. Nxb7 Nc2+ 21. Ke2 Rd5 $11)) 19... Nc5 {[%emt 0:00:40]} 20. g4 $1 {[%emt 0:02:22]} Qg6 {[%emt 0:04:16]} (20... Qh6 $142) 21. Qd2 {[%emt 0:03:56]} Rxd6 {[%emt 0:02:41]} 22. h5 {[%emt 0:00:21]} ({Much weaker is} 22. exd6 $6 Qf6 $11) 22... Nf4 {[%emt 0:00:46]} 23. exd6 {[%emt 0:04:10]} (23. Qxf4 $16 Nd3+ 24. Bxd3 Qxd3 25. exd6 Qxc3+ 26. Kf2 Qxa3 27. Rac1) 23... Qf6 {[%emt 0:01:11]} (23... Qg5 $1 $11) 24. Bxc5 {[%emt 0:03:16]} bxc5 {[%emt 0:00:01]} 25. Rh2 $2 {[%emt 0:00:44]} (25. Kf2 $14 {stays ahead.}) 25... Qe5+ $2 {[%emt 0:03:56]} (25... Bxf3 $17 26. Kf2 Bd5) 26. Kf2 $1 $11 {[%emt 0:03:05]} Rd8 $1 {[%emt 0:00:04]} 27. Kg1 {[%emt 0:00:16]} Bxf3 {[%emt 0:02:08]} 28. Qe1 {[%emt 0:01:38]} (28. Rf2 $11 Rxd6 29. Qb2) 28... Qxd6 $17 {[%emt 0:01:11]} 29. Rb1 {[%emt 0:00:10][%cal Oh2d2]} Bxg4 $2 {[%emt 0:00:41][%mdl 8192] [#]} (29... h6 $1 $17 {keeps the pressure on.} 30. Qh4 e5) 30. Rd2 $3 $18 {[%emt 0:00:30][%mdl 576] Skewer} Nd5 {[%emt 0:02:31]} (30... Qxd2 $2 31. Qxd2 Rf8 32. Qxf4 $18) 31. c4 {[%emt 0:00:03]} Bxh5 {[%emt 0:00:39]} 32. cxd5 {[%emt 0:00:03]} exd5 {[%emt 0:00:15]} 33. Bg2 {[%emt 0:00:17]} (33. Rb7 $18 {is more deadly.}) 33... d4 $16 {[%emt 0:00:06]} 34. Qh4 {[%emt 0:01:06]} (34. Rb7 $16) 34... Bg6 $11 {[%emt 0:00:17]} 35. Re1 {[%emt 0:00:02]} f6 {[%emt 0:01:55]} (35... d3 $1 $11 {remains equal.}) 36. Bf1 $16 {[%emt 0:01:12]} Qd5 {[%emt 0:01:05] Inhibits Bc4.} 37. Rc1 {[%emt 0:00:23] And now Bc4 would win.} Kh8 {[%emt 0:00:25]} 38. Bc4 {[%emt 0:00:36]} Qd6 {[%emt 0:00:18]} 39. Qh2 {[%emt 0:00:21]} Qe5 {[%emt 0:00:48]} (39... Qd7 $16) 40. Rf1 $2 {[%emt 0:03:01]} (40. Qxe5 $18 fxe5 41. Ba6) 40... Qe3+ $11 {[%emt 0:00:29]} 41. Qf2 {[%emt 0:31:19] Strongly threatening Qxe3.} Qc3 {[%emt 0:03:46]} 42. Bb5 {[%emt 0:00:00]} Rd5 $2 {[%emt 0:03:29] [#]} (42... c4 $11 {and Black stays safe.}) 43. Qf4 $1 $18 {[%emt 0:00:00]} h6 {[%emt 0:00:50]} 44. Rf3 $2 {[%emt 0:00:00]} ({White has to play} 44. Rg2 $18 Rg5 45. Rxg5 fxg5 46. Qf3) 44... d3 {[%emt 0:11:01]} ({Black should play} 44... Qc1+ $11 45. Rf1 Qc3) 45. Bc4 $1 $40 {[%emt 0:00:00][%mdl 128] White attacks.} Rg5+ {[%emt 0:10:10] [#] Black is on the road to losing.} (45... Rd8 $14) 46. Kf2 $1 $18 {[%emt 0:00:00] The board is on fire.} Kh7 {[%emt 0:00:06] aiming for ...Rf5.} (46... Be4 $2 {leads to mate.} 47. Qb8+ Kh7 48. Qg8+ Kg6 49. Bf7#) 47. Bxd3 {[%emt 0:00:00]} Qc1 $2 {[%emt 0:00:43]} (47... Bxd3 {keeps fighting.} 48. Rfxd3 Qa1) 48. Bxg6+ {[%emt 0:00:00]} Rxg6 {[%emt 0:00:02]} 49. Rg3 {[%emt 0:00:00] Active counter play!} Rxg3 {[%emt 0:00:25]} 50. Kxg3 {[%emt 0:00:00] Intending Qe4+ and mate.} Qe1+ {[%emt 0:01:23]} 51. Kh2 {[%emt 0:00:00] Threatening mate with Qf5+.} Qe7 {[%emt 0:00:29]} (51... Qe6 $142 52. Rf2 Kg8) 52. Qf5+ {[%emt 0:00:00]} Kh8 {[%emt 0:00:48]} 53. Qd5 {[%emt 0:00:00]} (53. Kg2 $142 Qe8 54. Kf3) 53... Qe1 {[%emt 0:00:52]} 54. Qd8+ {[%emt 0:00:00]} Kh7 {[%emt 0:00:02]} 55. Qd3+ {[%emt 0:00:00]} Kh8 {[%emt 0:00:16]} 56. Re2 {[%emt 0:01:21]} (56. Kg2 $142 {White wants to mate with Re2.} Qe5 57. Qg6) 56... Qh4+ {[%emt 0:00:08]} 57. Qh3 {[%emt 0:00:47]} Qf4+ {[%emt 0:00:40]} 58. Qg3 {[%emt 0:00:10]} Qa4 {[%emt 0:00:11]} (58... Qf5 $142) 59. Rg2 $2 {[%emt 0:01:21]} (59. Qg6 {Kg2 would kill now.} Qf4+ 60. Kg2 Qg5+ 61. Qxg5 hxg5 62. Re8+ Kh7 63. a4) 59... Qd7 {[%emt 0:00:10]} 60. Qf4 {[%emt 0:02:18]} ({Much less strong is} 60. Qb8+ Kh7 61. Qf8 Qc7+ 62. Kh1 c4 $18) 60... Kh7 {[%emt 0:02:43]} (60... Qe8 $142 61. Qf5 Qe7) 61. Rf2 {[%emt 0:00:27] Qf5+ is the strong threat.} Kh8 {[%emt 0:00:13]} 62. Rd2 {[%emt 0:00:35]} Qe7 {[%emt 0:01:01]} 63. Qd6 {[%emt 0:00:25]} Qe1 {[%emt 0:00:17]} 64. Kg2 {[%emt 0:01:13]} Qe4+ {[%emt 0:00:06]} 65. Kf2 {[%emt 0:00:15] Hoping for Qd8+.} Qb4 {[%emt 0:01:28]} (65... Qf5+ $142 66. Kg1 Qb1+ 67. Kf2 Qf5+ 68. Kg1 Qb1+ 69. Kh2 c4) 66. Qd8+ {[%emt 0:00:35]} Kh7 {[%emt 0:00:03]} 67. Qd3+ {[%emt 0:00:05]} Kh8 {[%emt 0:00:04]} 68. Re2 {[%emt 0:00:42][%cal Re2e8]} Qh4+ {[%emt 0:01:14]} 69. Qg3 {[%emt 0:00:16]} Qa4 $2 {[%emt 0:00:09]} (69... Qd4+ 70. Kg2 Qd7) 70. Kg2 {[%emt 0:01:32]} (70. Qg6 $142 {White threatens Re8+ and mate.} Qd4+ 71. Kf1) 70... Kh7 {[%emt 0:01:17]} 71. Qd3+ {[%emt 0:00:27]} Kh8 {[%emt 0:00:04]} 72. Qg6 {[%emt 0:00:29]} Qc6+ {[%emt 0:00:20]} 73. Kg1 {[%emt 0:00:08] Weighted Error Value: White=0.54/Black=0.55} 1-0

[Event "Dutch Open 2022"]
[Site "Dieren"]
[Date "2022.07.30"]
[Round "5.15"]
[White "Baselmans, Luuk"]
[Black "Roorda, Thijs"]
[Result "1/2-1/2"]
[ECO "C07"]
[WhiteElo "2256"]
[BlackElo "2113"]
[Annotator "TA"]
[PlyCount "51"]
[EventDate "2022.07.14"]
[EventType "swiss"]
[EventCountry "NED"]
[SourceTitle "playchess.com"]
[Source "ChessBase"]
[SourceQuality "1"]
[TimeControl "40/5400+30:1800+30"]

{[%evp 23,51,12,34,16,18,24,41,12,28,39,29,34,44,18,9,19,10,14,9,8,7,-55,-52,-36,0,0,0,0,4,3]} 1. e4 {[%emt 0:00:03]} e6 {[%emt 0:00:05]} 2. d4 {[%emt 0:00:07]} d5 {[%emt 0:00:05]} 3. Nd2 {[%emt 0:00:07]} c5 {[%emt 0:00:07]} 4. exd5 {[%emt 0:00:51]} Qxd5 {[%emt 0:00:07]} 5. Ngf3 {[%emt 0:00:54]} cxd4 {[%emt 0:00:08]} 6. Bc4 {[%emt 0:00:13]} Qd6 {[%emt 0:00:07]} 7. O-O {[%emt 0:00:50]} Nf6 {[%emt 0:00:11]} 8. Nb3 {[%emt 0:00:18]} Nc6 {[%emt 0:00:09]} 9. Nbxd4 {[%emt 0:00:29]} Nxd4 {[%emt 0:00:07]} 10. Nxd4 {[%emt 0:00:08]} Be7 {[%emt 0:00:11]} 11. Re1 {[%emt 0:05:56]} O-O {[%emt 0:00:21]} 12. c3 {[%emt 0:00:31]} Bd7 {[%emt 0:04:28]} (12... Qc7 $5 {[%cal Rc7c4]} 13. Bd3 b6 $11) 13. Qe2 {[%emt 0:02:26] C07: French Tarrasch: 3...c5, 4 Ngf3 and 4 exd5 Qxd5.} (13. Bb3 {is more complex.} Bc6 14. Bg5 Rad8 15. Qe2) 13... Rac8 {[%emt 0:22:45]} 14. Bb3 {[%emt 0:04:40] [#]} Bd8 $146 {[%emt 0:11:23]} ({Predecessor:} 14... a5 15. a4 Qb6 16. Bg5 Rfe8 17. Rad1 Rcd8 18. h3 h6 19. Bh4 Nd5 20. Bxe7 Nxe7 {1-0 (44) Engel,L (2532)-Graf,A (2569) Magdeburg 2020}) 15. Bg5 {[%emt 0:04:04] White is slightly better.} Nd5 {[%emt 0:06:00]} 16. Bxd8 {[%emt 0:02:36]} Rfxd8 {[%emt 0:00:27]} 17. Rad1 {[%emt 0:00:32][%cal Od4f5]} Bc6 {[%emt 0:07:29]} 18. Qf3 {[%emt 0:08:52]} Nf6 {[%emt 0:11:29]} 19. Nxc6 {[%emt 0:14:10]} Qxc6 {[%emt 0:00:14]} 20. Qxc6 {[%emt 0:00:07]} bxc6 {[%emt 0:00:04]} 21. Rxd8+ {[%emt 0:03:29]} Rxd8 $11 {[%emt 0:00:07] KRB-KRN} 22. Re5 {[%emt 0:00:05]} ({White should play} 22. Rd1 $11 Rxd1+ 23. Bxd1) 22... Rd2 $15 {[%emt 0:06:05]} 23. Rc5 {[%emt 0:05:58]} Rxb2 {[%emt 0:00:08] [#] ( -> ...Rb1+)} 24. f3 {[%emt 0:00:14] The position is equal.} g6 {[%emt 0:05:42]} 25. Rxc6 {[%emt 0:00:53]} Nd5 {[%emt 0:00:07]} 26. Bxd5 {[%emt 0:10:43] Weighted Error Value: White=0.15 (very precise) /Black=0.10 (very precise)} 1/2-1/2

[Event "Dutch Open 2022"]
[Site "Dieren"]
[Date "2022.07.30"]
[Round "5.16"]
[White "Ochs, Daniel Elias"]
[Black "Saketh, Pedagandham"]
[Result "0-1"]
[ECO "E05"]
[WhiteElo "2156"]
[BlackElo "1928"]
[Annotator "TA"]
[PlyCount "66"]
[EventDate "2022.07.14"]
[EventType "swiss"]
[EventCountry "NED"]
[SourceTitle "playchess.com"]
[Source "ChessBase"]
[SourceQuality "1"]
[TimeControl "40/5400+30:1800+30"]

{[%evp 20,66,20,11,17,15,16,13,16,12,28,3,20,17,11,12,19,-5,14,16,23,0,0,0,0,0,0,0,-26,-22,-35,-37,-37,-69,-72,-73,-72,-77,-82,-304,-292,-532,-539,-535,-512,-560,-560,-550,-531]} 1. d4 {[%emt 0:00:02]} Nf6 {[%emt 0:08:44]} 2. Nf3 {[%emt 0:00:07]} e6 {[%emt 0:00:07]} 3. c4 {[%emt 0:00:02]} d5 {[%emt 0:00:18]} 4. g3 {[%emt 0:00:19]} Be7 {[%emt 0:00:06]} 5. Bg2 {[%emt 0:00:04]} O-O {[%emt 0:00:07]} 6. O-O {[%emt 0:00:04]} dxc4 {[%emt 0:00:05]} 7. Qc2 {[%emt 0:00:06]} a6 {[%emt 0:00:04]} 8. a4 {[%emt 0:00:03]} Bd7 {[%emt 0:00:03]} 9. Qxc4 {[%emt 0:00:06]} Bc6 {[%emt 0:00:04]} 10. Bf4 {[%emt 0:00:37]} Nbd7 {[%emt 0:01:19]} 11. Nc3 {[%emt 0:01:39] 11.Qc1 deserves study.} Nb6 {[%emt 0:00:08] E05: Open Catalan: 5 Nf3 Be7.} 12. Qb3 {[%emt 0:03:28]} Nfd5 {[%emt 0:00:28]} 13. Bd2 {[%emt 0:03:32]} Nxc3 {[%emt 0:10:11] The position is equal.} 14. bxc3 {[%emt 0:02:11]} a5 {[%emt 0:01:07]} 15. Ne5 {[%emt 0:10:11]} Bxg2 {[%emt 0:02:51]} 16. Kxg2 {[%emt 0:00:10]} Qd5+ {[%emt 0:01:18]} 17. Qxd5 {[%emt 0:00:06]} exd5 {[%emt 0:00:03] [#]} 18. Bf4 $146 {[%emt 0:02:35]} ({Predecessor:} 18. Rfb1 Bd6 19. Nd3 Rfe8 20. Kf1 Nc4 21. Ke1 b6 22. Nb2 Na3 23. Rc1 b5 24. axb5 Nxb5 {1-0 (70) Khusenkhojaev,M (2456)-Varshini,V (2129) Bhubaneswar 2018}) 18... Bd6 {[%emt 0:01:41][%cal Og7g5]} (18... g5 $5 {[%cal Rg5f4]} 19. Bc1 Kg7 $11) 19. Nd3 {[%emt 0:00:09]} Bxf4 {[%emt 0:00:15]} 20. gxf4 {[%emt 0:00:08]} Nc4 {[%emt 0:00:14]} 21. Rfc1 {[%emt 0:04:53]} f6 {[%emt 0:01:35]} 22. Ra2 {[%emt 0:04:01]} Rfe8 {[%emt 0:13:19]} 23. e3 {[%emt 0:01:51]} Ra6 {[%emt 0:01:50]} 24. Rb1 {[%emt 0:05:53]} Nd6 {[%emt 0:12:07]} 25. Nc5 {[%emt 0:07:36]} Rb6 {[%emt 0:05:27]} 26. Rab2 {[%emt 0:03:25]} Rxb2 {[%emt 0:01:11]} 27. Rxb2 $15 {[%emt 0:00:05][%mdl 4096] Endgame KRN-KRN} b6 {[%emt 0:02:14]} 28. Nb3 {[%emt 0:01:08]} Nc4 {[%emt 0:00:33]} 29. Rc2 {[%emt 0:01:31] [#] Loses the game.} (29. Ra2 $17 {was necessary.}) 29... Rxe3 $1 $19 {[%emt 0:03:15][%cal Og8f7]} 30. fxe3 $2 {[%emt 0:01:34]} (30. Nc1) 30... Nxe3+ {[%emt 0:00:07] Black is clearly winning.} 31. Kf2 {[%emt 0:00:05]} Nxc2 {[%emt 0:00:06]} 32. Ke2 {[%emt 0:00:03]} Na3 {[%emt 0:00:18]} 33. Nd2 {[%emt 0:00:59]} Nc4 {[%emt 0:02:59] Weighted Error Value: White=0.41/Black=0.02 (flawless)} 0-1

[Event "Dutch Open 2022"]
[Site "Dieren"]
[Date "2022.07.30"]
[Round "5.17"]
[White "Op den Dries, Johan"]
[Black "Kohler, Aran"]
[Result "1-0"]
[ECO "D00"]
[WhiteElo "2104"]
[BlackElo "2121"]
[Annotator "TA"]
[PlyCount "67"]
[EventDate "2022.07.14"]
[EventType "swiss"]
[EventCountry "NED"]
[SourceTitle "playchess.com"]
[Source "ChessBase"]
[SourceQuality "1"]
[TimeControl "40/5400+30:1800+30"]

{[%evp 14,66,-35,-41,-33,-27,-12,-14,4,-23,-18,-20,-20,-22,0,-26,-27,-31,14,0,12,15,0,10,29,11,62,59,106,103,275,237,235,236,252,231,433,468,687,671,29977,29977,2763,2757,29987,29988,29988,29978,29977,29978,29978,29978,29988,29989,29999]} 1. d4 {[%emt 0:00:02]} d5 {[%emt 0:00:07]} 2. e3 {[%emt 0:00:06]} Nf6 {[%emt 0:00:27]} 3. Bd3 {[%emt 0:00:22]} c5 {[%emt 0:00:37]} 4. c3 {[%emt 0:00:07]} Nc6 {[%emt 0:01:01]} 5. f4 {[%emt 0:00:08]} cxd4 {[%emt 0:00:23]} 6. exd4 {[%emt 0:00:25]} Bg4 {[%emt 0:00:17]} 7. Nf3 {[%emt 0:00:44]} e6 {[%emt 0:00:06]} 8. O-O {[%emt 0:00:46]} Bd6 {[%emt 0:00:10] D00: 1 d4 d5: Unusual lines.} 9. Qe1 {[%emt 0:03:29]} Bxf3 {[%emt 0:00:17]} 10. Rxf3 {[%emt 0:00:09]} Qc7 {[%emt 0:00:25] The position is equal.} 11. Be3 {[%emt 0:04:45]} Ne4 {[%emt 0:03:02]} 12. Nd2 {[%emt 0:00:56]} f5 {[%emt 0:00:08]} 13. Qh4 {[%emt 0:02:18]} Be7 {[%emt 0:05:08] [#]} 14. Qh5+ $146 {[%emt 0:01:52]} ({Predecessor:} 14. Qe1 O-O-O 15. a3 g5 16. c4 g4 17. Rf1 Bf6 18. Rc1 Qg7 19. b4 Kb8 20. Nb3 Nxd4 {0-1 (40) Diller,P (1868)-Werner,T (1852) Mittelfranken 2010}) 14... g6 {[%emt 0:00:27]} 15. Qh3 {[%emt 0:00:16]} Nd8 {[%emt 0:06:03]} 16. Bb5+ {[%emt 0:02:58]} Kf7 {[%emt 0:00:35]} 17. Nxe4 {[%emt 0:00:16]} dxe4 {[%emt 0:00:28]} 18. Rf2 {[%emt 0:00:40]} a6 {[%emt 0:00:23]} 19. Ba4 {[%emt 0:01:37] aiming for Rd1.} b5 {[%emt 0:05:55]} (19... Nc6 $11) 20. Bb3 $14 {[%emt 0:00:17]} h5 {[%emt 0:01:35]} (20... Kg7 $14) 21. Rd1 {[%emt 0:02:08] [#] Hoping for d5.} Re8 $2 {[%emt 0:01:39] This costs Black the game.} (21... a5 $16 {was necessary.}) 22. g4 $18 {[%emt 0:05:28]} fxg4 {[%emt 0:14:38]} 23. Qg2 {[%emt 0:00:04]} Kg7 {[%emt 0:02:46]} 24. Qxe4 {[%emt 0:00:43]} Qb7 {[%emt 0:03:43] [#]} (24... Nf7 25. Bc2 (25. Qxe6 $2 Bh4 $19) (25. Bxe6 Nd6 $11) 25... Nh8) 25. d5 $1 {[%emt 0:05:27] Black must now prevent Bc2.} Nf7 {[%emt 0:07:36]} (25... Rf8 $142 26. Bc2 Rf5 27. dxe6 Qxe4 28. Bxe4 Rc8) 26. Bc2 {[%emt 0:01:41]} exd5 {[%emt 0:10:27]} 27. Qxg6+ {[%emt 0:00:06]} Kf8 {[%emt 0:00:07]} 28. Bd4 {[%emt 0:00:45][%csl Gd4][%cal Rg6g7]} Bh4 {[%emt 0:02:20]} 29. Bg7+ {[%emt 0:07:57] This bishop pair is nice. White mates.} Ke7 {[%emt 0:00:08]} 30. Re2+ {[%emt 0:00:02]} Kd8 {[%emt 0:00:19]} 31. Rxe8+ {[%emt 0:02:35]} Kxe8 {[%emt 0:00:10]} 32. Qe6+ {[%emt 0:00:13]} Be7 {[%emt 0:03:47]} 33. Bg6 {[%emt 0:00:03]} Rd8 {[%emt 0:00:08]} 34. Bxf7# {[%emt 0:00:06] Weighted Error Value: White=0.05 (flawless) /Black=0.83} 1-0

[Event "Dutch Open 2022"]
[Site "Dieren"]
[Date "2022.08.01"]
[Round "6.1"]
[White "De Winter, Arthur"]
[Black "Van Roon, Sjoerd"]
[Result "1-0"]
[ECO "B33"]
[WhiteElo "2150"]
[BlackElo "2310"]
[Annotator "TA"]
[PlyCount "93"]
[EventDate "2022.07.14"]
[EventType "swiss"]
[EventCountry "NED"]
[SourceTitle "playchess.com"]
[Source "ChessBase"]
[SourceQuality "1"]
[TimeControl "40/5400+30:1800+30"]

{[%evp 24,93,41,10,71,71,93,84,91,82,75,70,70,49,51,0,0,0,0,0,1,0,0,0,0,0,0,0,37,46,59,11,47,0,160,85,156,164,288,269,295,284,363,366,624,614,672,642,789,785,1557,1550,1483,1475,1518,1476,1315,1325,1307,1260,1364,1215,1819,1628,29955,29956,29967,29969,29966,29966,29979,29980]} 1. e4 {[%emt 0:00:02]} c5 {[%emt 0:00:02]} 2. Nf3 {[%emt 0:00:04]} e6 {[%emt 0:00:03]} 3. d4 {[%emt 0:00:07]} cxd4 {[%emt 0:00:06]} 4. Nxd4 {[%emt 0:00:05]} Nf6 {[%emt 0:00:03]} 5. Nc3 {[%emt 0:00:05]} Nc6 {[%emt 0:00:03]} 6. Ndb5 {[%emt 0:00:14]} d6 {[%emt 0:00:06]} 7. Bf4 {[%emt 0:00:05]} e5 {[%emt 0:00:03]} 8. Bg5 {[%emt 0:00:04]} a6 {[%emt 0:00:05]} 9. Na3 {[%emt 0:00:03]} b5 {[%emt 0:00:04]} 10. Bxf6 {[%emt 0:00:07]} gxf6 {[%emt 0:00:04]} 11. Nd5 {[%emt 0:00:04]} f5 {[%emt 0:00:06]} 12. g3 {[%emt 0:00:03]} Bg7 {[%emt 0:05:14] is more profitable than 12...fxe4 at the moment.} 13. Bg2 {[%emt 0:00:44]} Ra7 {[%emt 0:00:42] B33: Sicilian: Pelikan and Sveshnikov Variations.} (13... fxe4 $11 {remains equal.} 14. Bxe4 Be6) 14. exf5 $16 {[%emt 0:09:42]} Bxf5 {[%emt 0:00:53]} 15. Ne3 {[%emt 0:00:41][%csl LRc6,LRf5] Pair of Knights!} Ne7 {[%emt 0:00:13] White is better.} 16. Nxf5 {[%emt 0:01:54]} Nxf5 {[%emt 0:00:05]} 17. Qg4 {[%emt 0:06:22]} Qf6 {[%emt 0:02:44][%cal Oe5e4]} 18. Bc6+ {[%emt 0:06:09]} Kf8 {[%emt 0:01:38]} 19. Be4 {[%emt 0:01:23]} ({Better is} 19. O-O $14) 19... Ne7 $1 $11 {[%emt 0:02:41] [#]} 20. Rd1 $146 {[%emt 0:00:42]} ({Predecessor:} 20. c4 bxc4 21. Nxc4 Rc7 22. Ne3 h5 23. Qe2 Qe6 24. Qxa6 f5 25. Bg2 f4 26. Nd5 Nxd5 27. Qa8+ {½-½ (113) Pecurica,M (2328)-Djurovic,P (2136) Podgorica 2021}) 20... h5 {[%emt 0:18:46]} 21. Qe2 {[%emt 0:02:03]} Qe6 {[%emt 0:01:21]} 22. c4 {[%emt 0:16:07]} f5 {[%emt 0:10:22]} 23. Bd5 $36 {[%emt 0:07:08][%mdl 2048] White has some pressure.} Nxd5 {[%emt 0:01:53]} 24. Rxd5 {[%emt 0:00:24] Threatens to win with 0-0.} bxc4 {[%emt 0:09:30]} 25. Qd1 {[%emt 0:00:17]} Ke7 {[%emt 0:02:31]} (25... c3 $5 {[%cal Rc3b2]}) 26. Nxc4 {[%emt 0:00:29]} Rd7 {[%emt 0:00:57]} 27. Qd3 {[%emt 0:06:54]} (27. b3 $14) 27... e4 {[%emt 0:11:19]} (27... Rc8 $5 {[%cal Re5e4]} 28. b3 e4 $14) 28. Qd2 {[%emt 0:00:45]} (28. Qd1 $1 $14 {is superior.}) 28... Rc7 $2 {[%emt 0:08:22] White stays focused until the end.} ({Black should play} 28... h4 $1 $11) 29. b3 {[%emt 0:08:50]} (29. Nxd6 $142 Be5 30. Qg5+ Kd7 31. Rd1 $1 (31. Qxf5 $2 Bxd6 32. O-O Qxf5 $19) 31... Bxd6 32. Qg7+ Qe7 33. Qxh8) 29... Rd8 {[%emt 0:01:30] [#]} (29... Qh6 $142) 30. O-O $1 $16 {[%emt 0:02:04] And now Rd1 would win.} ({Inferior is} 30. Qg5+ Bf6 31. Qd2 (31. Qxf5 Qxf5 32. Rxf5 d5 $15) 31... Bc3 32. Qxc3 Qxd5 $11) 30... h4 {[%emt 0:01:17]} (30... Rc5 $142 31. Ne3 Be5) 31. Rd1 $18 {[%emt 0:01:27]} hxg3 {[%emt 0:03:04]} 32. hxg3 {[%emt 0:01:10]} Rc6 {[%emt 0:00:10]} 33. Qf4 {[%emt 0:30:42]} Rxc4 $2 {[%emt 0:02:21]} (33... Kf7 34. Rxf5+ Kg8) 34. bxc4 {[%emt 0:00:00]} Be5 {[%emt 0:00:07]} 35. Qh4+ {[%emt 0:00:00]} Kd7 {[%emt 0:01:26]} 36. c5 {[%emt 0:00:00]} Kc8 {[%emt 0:00:59]} 37. cxd6 {[%emt 0:00:00] Threatening mate with Rc5+.} Rd7 {[%emt 0:00:10]} 38. Qg5 {[%emt 0:00:00] Intending Rc5+ and mate.} Rxd6 {[%emt 0:01:13]} 39. Rxd6 {[%emt 0:00:00]} Bxd6 {[%emt 0:00:03][%mdl 4096] Endgame KQR-KQB} 40. Qd2 {[%emt 0:00:00]} Kd7 {[%emt 0:05:38]} 41. Qd5 {[%emt 0:07:38] White threatens Qb7+ and mate.} Qxd5 {[%emt 0:33:02]} 42. Rxd5 {[%emt 0:00:05] KR-KB} Ke6 {[%emt 0:00:04]} 43. Ra5 {[%emt 0:00:05]} e3 {[%emt 0:00:03]} 44. fxe3 {[%emt 0:00:15] White mates.} Bxg3 {[%emt 0:00:05]} 45. Rxa6+ {[%emt 0:00:02]} Kd5 {[%emt 0:00:20]} 46. Kg2 {[%emt 0:00:39]} f4 {[%emt 0:00:49]} 47. Kf3 {[%emt 0:00:12] Weighted Error Value: White=0.09 (flawless) /Black=0.64} 1-0